bitfinex/quotes_BTCUSD_20230113
["timestamp","ask_amount","ask_price","bid_price","bid_amount"]
[1673616403827,4.1299593,18881.0,18880.0,0.00682769]
[1673616404317,4.83135278,18881.0,18880.0,0.00682769]
[1673616404560,3.8299593,18881.0,18880.0,0.00682769]
[1673616404805,4.1299593,18881.0,18880.0,0.00682769]
[1673616405340,5.49233499,18881.0,18880.0,0.00682769]
[1673616405588,5.45200756,18881.0,18880.0,0.00184615]
[1673616405831,5.02223624,18881.0,18880.0,0.00184615]
[1673616406336,4.98171212,18881.0,18880.0,0.00184615]
[1673616406836,5.02225426,18881.0,18880.0,0.00184615]
[1673616407092,5.54559527,18881.0,18880.0,0.00184615]
[1673616407623,5.97995516,18881.0,18880.0,0.00184615]
[1673616407865,5.50513398,18881.0,18880.0,0.00184615]
[1673616408100,5.98007129,18881.0,18880.0,0.00184615]
[1673616408344,5.50513398,18881.0,18880.0,0.00184615]
[1673616409853,5.59873398,18881.0,18880.0,0.00184615]
[1673616411596,6.13187241,18881.0,18880.0,0.00184615]
[1673616412559,6.27827613,18881.0,18880.0,0.00184615]
[1673616412811,7.33463043,18881.0,18880.0,0.00184615]
[1673616413053,5.7451377,18881.0,18880.0,0.00184615]
[1673616413307,6.87756668,18881.0,18879.0,0.00505328]
[1673616413544,6.87756668,18881.0,18878.0,0.00527678]
[1673616413545,3.57761363,18880.0,18878.0,0.00527678]
[1673616413788,3.03055657,18879.0,18878.0,0.00527678]
[1673616414099,3.82622018,18879.0,18878.0,0.00527678]
[1673616414340,4.34956119,18879.0,18878.0,0.00527678]
[1673616414813,6.08705167,18879.0,18878.0,0.00527678]
[1673616415257,7.8115444,18879.0,18878.0,0.00527678]
[1673616415548,0.430181,18878.0,18877.0,0.0029442]
[1673616415796,2.68343098,18878.0,18877.0,0.0029442]
[1673616416026,5.85574126,18878.0,18877.0,0.0029442]
[1673616417241,5.86574126,18878.0,18877.0,0.0029442]
[1673616417482,5.91854498,18878.0,18877.0,0.0029442]
[1673616417715,6.05454498,18878.0,18877.0,0.0029442]
[1673616418809,4.46505225,18878.0,18877.0,0.0029442]
[1673616419037,5.03085225,18878.0,18877.0,0.0029442]
[1673616419456,6.62064754,18878.0,18877.0,0.0029442]
[1673616420626,4.49626119,18878.0,18877.0,0.0029442]
[1673616421611,4.35005747,18878.0,18877.0,0.0029442]
[1673616423123,3.95028929,18878.0,18877.0,0.21324914]
[1673616423366,0.58723673,18877.0,18876.0,0.00382227]
[1673616423611,2.26351952,18877.0,18876.0,0.00382227]
[1673616423867,4.26351952,18877.0,18876.0,0.00382227]
[1673616424907,4.39951952,18877.0,18876.0,0.00382227]
[1673616425657,4.79531507,18877.0,18876.0,0.00382227]
[1673616426877,4.39951952,18877.0,18876.0,0.00382227]
[1673616427630,4.7952899,18877.0,18876.0,0.00382227]
[1673616427866,4.39951952,18877.0,18876.0,0.00382227]
[1673616428133,4.79529941,18877.0,18876.0,0.00382227]
[1673616428626,4.49561055,18877.0,18876.0,0.00382227]
[1673616428874,4.39951952,18877.0,18876.0,0.00382227]
[1673616429114,4.79529182,18877.0,18876.0,0.00382227]
[1673616429591,4.39951952,18877.0,18876.0,0.00382227]
[1673616429842,3.81228279,18877.0,18876.0,0.00382227]
[1673616430077,5.00473878,18877.0,18876.0,0.00382227]
[1673616430311,5.62127979,18877.0,18876.0,0.00382227]
[1673616430604,6.16440323,18877.0,18876.0,0.00107119]
[1673616430879,5.62981217,18877.0,18876.0,0.00107119]
[1673616431350,5.49381217,18877.0,18876.0,0.00107119]
[1673616431588,5.62981217,18877.0,18876.0,0.00107119]
[1673616431858,5.49381217,18877.0,18876.0,0.00107119]
[1673616432104,5.62981217,18877.0,18876.0,0.00107119]
[1673616433851,6.81490323,18877.0,18876.0,0.00107119]
[1673616434081,6.82340323,18877.0,18876.0,0.00107119]
[1673616434821,6.68740323,18877.0,18876.0,0.00107119]
[1673616435064,6.15281217,18877.0,18876.0,0.00107119]
[1673616435325,6.28981217,18877.0,18876.0,0.00107119]
[1673616435603,6.23700845,18877.0,18876.0,0.00107119]
[1673616437313,5.60373895,18877.0,18876.0,0.00107119]
[1673616437550,4.97812808,18877.0,18876.0,0.00107119]
[1673616437790,5.4527085,18877.0,18876.0,0.00107119]
[1673616438286,4.97812808,18877.0,18876.0,0.00107119]
[1673616438823,5.27812808,18877.0,18876.0,0.00107119]
[1673616439349,4.8164275,18877.0,18876.0,0.00107119]
[1673616440058,4.3366238,18877.0,18876.0,0.00107119]
[1673616440289,4.67420422,18877.0,18876.0,0.00107119]
[1673616440535,4.81020422,18877.0,18876.0,0.00207119]
[1673616440770,4.97420422,18877.0,18876.0,0.00107119]
[1673616441019,4.97420422,18877.0,18876.0,0.00207119]
[1673616441020,5.11020422,18877.0,18876.0,0.00207119]
[1673616441513,5.527678,18877.0,18876.0,0.00207119]
[1673616441758,5.95700621,18877.0,18876.0,0.00058698]
[1673616441987,5.48242579,18877.0,18876.0,0.00058698]
[1673616443260,0.1,18876.0,18874.0,0.00538955]
[1673616443506,1.67628279,18875.0,18874.0,0.00538955]
[1673616443735,1.77628279,18875.0,18874.0,0.00538955]
[1673616443975,2.07628279,18875.0,18874.0,0.00538955]
[1673616444240,4.31493735,18875.0,18874.0,0.00538955]
[1673616444729,5.0740169,18875.0,18874.0,0.00638955]
[1673616445203,5.3740169,18875.0,18874.0,0.00638955]
[1673616445449,5.0740169,18875.0,18874.0,0.00638955]
[1673616445757,5.61725921,18875.0,18874.0,0.00638955]
[1673616445999,5.31725921,18875.0,18874.0,0.00638955]
[1673616446994,5.0740169,18875.0,18874.0,0.00638955]
[1673616447490,5.33513843,18875.0,18874.0,0.00538955]
[1673616447732,5.47013843,18875.0,18874.0,0.00638955]
[1673616447946,5.0740169,18875.0,18874.0,0.00638955]
[1673616450478,5.37030779,18875.0,18874.0,0.00638955]
[1673616451222,5.23530779,18875.0,18874.0,0.00538955]
[1673616451465,4.74622824,18875.0,18874.0,0.00638955]
[1673616451714,4.73324563,18875.0,18874.0,0.00638955]
[1673616451960,5.06342663,18875.0,18874.0,0.00638955]
[1673616452205,5.66342663,18875.0,18874.0,0.00638955]
[1673616453176,5.66342663,18875.0,18874.0,0.00632295]
[1673616453426,5.33324563,18875.0,18874.0,0.00632295]
[1673616453915,5.66342663,18875.0,18874.0,0.00632295]
[1673616454896,5.33324563,18875.0,18874.0,0.00632295]
[1673616455385,5.66342663,18875.0,18874.0,0.00632295]
[1673616455634,5.33324563,18875.0,18874.0,0.00632295]
[1673616456675,5.04662038,18875.0,18874.0,0.00632295]
[1673616457435,5.32579655,18875.0,18874.0,0.00632295]
[1673616457929,5.6559721,18875.0,18874.0,0.00632295]
[1673616460447,5.33877371,18875.0,18874.0,0.00632295]
[1673616460688,5.58314298,18875.0,18874.0,0.00632295]
[1673616461731,5.97974754,18875.0,18874.0,0.00632295]
[1673616461970,5.9668776,18875.0,18874.0,0.00632295]
[1673616462705,5.52911681,18875.0,18874.0,0.00632295]
[1673616462965,5.52912013,18875.0,18874.0,0.00632295]
[1673616463201,5.29110232,18875.0,18874.0,0.00632295]
[1673616463928,4.46962463,18875.0,18874.0,0.50564658]
[1673616464410,4.3109653,18875.0,18874.0,0.50564658]
[1673616465186,3.43230629,18875.0,18874.0,0.69284658]
[1673616465431,3.27365456,18875.0,18874.0,1.02302758]
[1673616466439,3.27365456,18875.0,18874.0,0.52370395]
[1673616466687,3.27365456,18875.0,18874.0,1.50622434]
[1673616466909,0.735,18875.0,18874.0,1.40622434]
[1673616467711,0.6,18875.0,18874.0,1.40522434]
[1673616468928,0.58488,18875.0,18874.0,1.42522434]
[1673616469164,0.56988,18875.0,18874.0,1.40522434]
[1673616469402,0.58088,18875.0,18874.0,1.42422434]
[1673616470908,0.58088,18875.0,18874.0,1.42703797]
[1673616471427,0.58088,18875.0,18874.0,1.28753797]
[1673616472406,0.58088,18875.0,18874.0,0.87601758]
[1673616473633,0.58088,18875.0,18874.0,1.42579366]
[1673616474659,0.58088,18875.0,18874.0,1.42593432]
[1673616475606,0.58088,18875.0,18874.0,0.77334461]
[1673616476346,0.58088,18875.0,18874.0,0.87334461]
[1673616476605,0.58088,18875.0,18874.0,1.03193089]
[1673616477566,0.58088,18875.0,18874.0,0.87334461]
[1673616479042,0.58088,18875.0,18874.0,1.49333363]
[1673616479280,0.58088,18875.0,18874.0,0.87334461]
[1673616482021,0.472722,18875.0,18874.0,0.87334461]
[1673616483471,0.472722,18875.0,18874.0,2.06988753]
[1673616483702,0.472722,18875.0,18874.0,3.01763089]
[1673616483944,0.472722,18875.0,18874.0,3.2554642]
[1673616484205,0.472722,18875.0,18874.0,3.59594826]
[1673616484439,0.472722,18875.0,18874.0,3.35811495]
[1673616484715,0.472722,18875.0,18874.0,4.12218096]
[1673616484932,0.472722,18875.0,18874.0,4.62378436]
[1673616485427,0.472722,18875.0,18874.0,4.2833003]
[1673616487624,0.472722,18875.0,18874.0,4.28309179]
[1673616489095,0.472722,18875.0,18874.0,3.7816969]
[1673616489327,0.472722,18875.0,18874.0,1.85936359]
[1673616490795,0.472722,18875.0,18874.0,2.0971969]
[1673616491542,0.472722,18875.0,18874.0,1.85936359]
[1673616492046,0.472722,18875.0,18874.0,1.29176545]
[1673616492292,0.472722,18875.0,18874.0,0.87186545]
[1673616492565,0.472722,18875.0,18874.0,0.54168445]
[1673616493321,0.472722,18875.0,18874.0,0.64168445]
[1673616494076,0.472722,18875.0,18874.0,0.54168445]
[1673616495040,0.389402,18875.0,18874.0,0.64168445]
[1673616495546,0.389402,18875.0,18874.0,0.64182511]
[1673616498980,0.389402,18875.0,18874.0,0.54182511]
[1673616499705,0.389402,18875.0,18874.0,0.64182511]
[1673616500429,0.389402,18875.0,18874.0,0.54182511]
[1673616500681,0.389402,18875.0,18874.0,0.64182511]
[1673616501950,0.389402,18875.0,18874.0,0.80041139]
[1673616504145,0.389402,18875.0,18874.0,1.5417352]
[1673616504399,0.389402,18875.0,18874.0,1.8719162]
[1673616504895,0.389402,18875.0,18874.0,1.3684257]
[1673616505611,0.389402,18875.0,18874.0,1.38619592]
[1673616506838,0.389402,18875.0,18874.0,1.28619592]
[1673616507080,0.389402,18875.0,18874.0,0.71804095]
[1673616508036,0.29255705,18875.0,18874.0,0.71804095]
[1673616508294,0.29255705,18875.0,18874.0,0.81804095]
[1673616510433,0.29255705,18875.0,18874.0,0.81818161]
[1673616511401,0.29255705,18875.0,18874.0,0.71818161]
[1673616511953,0.29255705,18875.0,18874.0,0.81818161]
[1673616512989,0.29255705,18875.0,18874.0,0.71804095]
[1673616513251,0.29255705,18875.0,18874.0,0.71818161]
[1673616513972,0.29255705,18875.0,18874.0,0.81818161]
[1673616514225,0.29255705,18875.0,18874.0,0.71818161]
[1673616514691,0.29255705,18875.0,18874.0,0.81818161]
[1673616515432,0.29255705,18875.0,18874.0,0.71818161]
[1673616516363,0.29255705,18875.0,18874.0,0.81818161]
[1673616516669,0.29255705,18875.0,18874.0,0.95848161]
[1673616517275,0.29255705,18875.0,18874.0,2.03115753]
[1673616518869,0.29255705,18875.0,18874.0,2.03126503]
[1673616519118,0.29255705,18875.0,18874.0,1.51390353]
[1673616519364,0.29255705,18875.0,18874.0,1.67238231]
[1673616519924,0.29255705,18875.0,18874.0,1.79344214]
[1673616520164,0.29255705,18875.0,18874.0,2.33856756]
[1673616520409,0.29255705,18875.0,18874.0,2.32993956]
[1673616520919,0.26330134,18875.0,18874.0,2.32993956]
[1673616522355,0.26330134,18875.0,18874.0,2.06502956]
[1673616522837,0.26330134,18875.0,18874.0,2.1342528]
[1673616523103,0.26330134,18875.0,18874.0,2.45167028]
[1673616523352,0.26330134,18875.0,18874.0,2.29327187]
[1673616526280,0.26330134,18875.0,18874.0,2.19313121]
[1673616526526,0.26330134,18875.0,18874.0,2.03445597]
[1673616527107,0.26330134,18875.0,18874.0,1.87571373]
[1673616527589,0.26330134,18875.0,18874.0,2.19313121]
[1673616528313,0.26330134,18875.0,18874.0,2.35152962]
[1673616528570,0.26330134,18875.0,18874.0,2.21122962]
[1673616528814,0.26330134,18875.0,18874.0,2.05290154]
[1673616531669,0.26330134,18875.0,18874.0,1.81476392]
[1673616531921,0.26330134,18875.0,18874.0,2.21122962]
[1673616532852,0.26330134,18875.0,18874.0,1.89381214]
[1673616533066,0.26330134,18875.0,18874.0,2.00344642]
[1673616533319,0.26330134,18875.0,18874.0,1.4852889]
[1673616533564,0.26330134,18875.0,18874.0,2.03614597]
[1673616534060,0.23697121,18875.0,18874.0,1.7852889]
[1673616535112,0.23697121,18875.0,18874.0,2.39468597]
[1673616536556,0.23697121,18875.0,18874.0,2.09468597]
[1673616536798,0.23697121,18875.0,18874.0,2.39468597]
[1673616537033,0.23697121,18875.0,18874.0,2.41211259]
[1673616539630,0.23697121,18875.0,18874.0,2.09468597]
[1673616539863,0.23697121,18875.0,18874.0,2.41209772]
[1673616540097,0.23697121,18875.0,18874.0,2.27179772]
[1673616540331,0.23697121,18875.0,18874.0,2.27179477]
[1673616540802,0.23697121,18875.0,18874.0,1.3449889]
[1673616541040,0.23697121,18875.0,18874.0,1.6449889]
[1673616541287,0.23697121,18875.0,18874.0,2.0067066]
[1673616541574,0.23697121,18875.0,18874.0,2.3067066]
[1673616541822,0.23697121,18875.0,18874.0,1.6449889]
[1673616542082,0.23697121,18875.0,18874.0,1.2485232]
[1673616543583,0.23697121,18875.0,18874.0,1.93007645]
[1673616543826,0.23697121,18875.0,18874.0,1.2485232]
[1673616545779,0.23697121,18875.0,18874.0,2.3190659]
[1673616546262,0.05930015,18878.0,18875.0,0.86939253]
[1673616546510,0.05930015,18878.0,18876.0,1.23131226]
[1673616546511,0.05917015,18878.0,18876.0,1.23131226]
[1673616546761,0.05917015,18878.0,18877.0,0.430181]
[1673616547008,0.03547303,18878.0,18877.0,0.430181]
[1673616547279,3.21818636,18879.0,18877.0,0.430181]
[1673616547522,3.21818636,18879.0,18878.0,0.330181]
[1673616547775,2.53865456,18879.0,18878.0,0.330181]
[1673616548766,3.37622845,18879.0,18878.0,0.331181]
[1673616549005,3.37622845,18879.0,18878.0,0.001]
[1673616549006,3.71934649,18879.0,18878.0,0.001]
[1673616550051,4.61899256,18879.0,18878.0,0.001]
[1673616550293,6.13306079,18879.0,18878.0,0.001]
[1673616550565,6.14766045,18879.0,18878.0,0.001]
[1673616550791,5.83034939,18879.0,18878.0,0.001]
[1673616551042,6.39276886,18879.0,18878.0,0.001]
[1673616551290,5.86942785,18879.0,18878.0,0.001]
[1673616552320,5.47282329,18879.0,18878.0,0.001]
[1673616552876,4.91040382,18879.0,18878.0,0.001]
[1673616553114,5.58993517,18879.0,18878.0,0.001]
[1673616555579,4.91040382,18879.0,18878.0,0.001]
[1673616556077,5.50439859,18879.0,18878.0,0.001]
[1673616556790,5.51378723,18879.0,18878.0,0.001]
[1673616558575,5.49965597,18879.0,18878.0,0.001]
[1673616560315,5.63985597,18879.0,18878.0,0.001]
[1673616561040,5.9571731,18879.0,18878.0,0.001]
[1673616561294,5.63985597,18879.0,18878.0,0.001]
[1673616562046,5.95717597,18879.0,18878.0,0.001]
[1673616562303,5.63985597,18879.0,18878.0,0.001]
[1673616563031,5.19040382,18879.0,18878.0,0.001]
[1673616563749,5.66548999,18879.0,18878.0,0.001]
[1673616564005,6.21041764,18879.0,18878.0,0.001]
[1673616564251,6.66731573,18879.0,18878.0,0.001]
[1673616564497,5.96548999,18879.0,18878.0,0.001]
[1673616565238,0.1,18878.0,18875.0,0.10327902]
[1673616565516,1.3616,18876.0,18875.0,0.10327902]
[1673616565760,2.79485803,18876.0,18875.0,0.10327902]
[1673616566016,5.85437776,18876.0,18875.0,0.10327902]
[1673616566764,5.44379813,18876.0,18875.0,0.10327902]
[1673616567022,5.57979813,18876.0,18875.0,0.10327902]
[1673616567522,6.14616146,18876.0,18875.0,0.10327902]
[1673616567766,6.10313914,18876.0,18875.0,0.10327902]
[1673616568014,5.99052837,18876.0,18875.0,0.10327902]
[1673616568254,5.48344352,18876.0,18875.0,0.10327902]
[1673616568497,6.29018561,18876.0,18875.0,0.10327902]
[1673616568726,5.87953114,18876.0,18875.0,0.10327902]
[1673616569209,6.29029915,18876.0,18875.0,0.10327902]
[1673616569482,7.25985254,18876.0,18875.0,0.10327902]
[1673616569955,6.73651153,18876.0,18875.0,0.10327902]
[1673616570199,7.13251923,18876.0,18875.0,0.10327902]
[1673616570665,6.72175122,18876.0,18875.0,0.10327902]
[1673616570916,6.73654926,18876.0,18875.0,0.10327902]
[1673616571637,7.21217479,18876.0,18875.0,0.10327902]
[1673616571882,7.7355158,18876.0,18875.0,0.10327902]
[1673616572377,6.73654926,18876.0,18875.0,0.10327902]
[1673616572629,7.13218776,18876.0,18875.0,0.10327902]
[1673616573262,6.73654926,18876.0,18875.0,0.10327902]
[1673616574936,7.13200831,18876.0,18875.0,0.10327902]
[1673616575171,6.73654926,18876.0,18875.0,0.10327902]
[1673616575417,7.25989027,18876.0,18875.0,0.10327902]
[1673616578874,7.13178206,18876.0,18875.0,0.10327902]
[1673616579127,0.1,18875.0,18873.0,0.00469965]
[1673616579382,2.55617806,18874.0,18873.0,0.00469965]
[1673616579628,2.85617806,18874.0,18873.0,0.00469965]
[1673616580112,5.39483262,18874.0,18873.0,0.00469965]
[1673616580345,5.54965253,18874.0,18873.0,0.00469965]
[1673616580585,5.68365253,18874.0,18873.0,0.00469965]
[1673616580865,5.38365253,18874.0,18873.0,0.00469965]
[1673616581096,5.68365253,18874.0,18873.0,0.00469965]
[1673616581348,5.07071704,18874.0,18873.0,0.00469965]
[1673616581596,5.37071704,18874.0,18873.0,0.00469965]
[1673616582085,5.21265547,18874.0,18873.0,0.00469965]
[1673616582334,5.37075237,18874.0,18873.0,0.00469965]
[1673616582826,4.11532332,18874.0,18873.0,0.00469965]
[1673616583362,4.11532332,18874.0,18873.0,0.21500459]
[1673616583571,3.95722642,18874.0,18873.0,0.00469965]
[1673616588506,4.11532332,18874.0,18873.0,0.00469965]
[1673616588714,3.95722642,18874.0,18873.0,0.00469965]
[1673616589905,4.11532332,18874.0,18873.0,0.00469965]
[1673616591160,4.35245619,18874.0,18873.0,0.00469965]
[1673616591618,4.07305619,18874.0,18873.0,0.00469965]
[1673616591867,3.83592332,18874.0,18873.0,0.00469965]
[1673616595662,4.07332825,18874.0,18873.0,0.00469965]
[1673616595919,3.91495929,18874.0,18873.0,0.00469965]
[1673616596187,4.07332883,18874.0,18873.0,0.00469965]
[1673616596418,4.23113644,18874.0,18873.0,0.00469965]
[1673616597651,3.91495929,18874.0,18873.0,0.00469965]
[1673616598134,4.073376,18874.0,18873.0,0.00469965]
[1673616598383,4.07342596,18874.0,18873.0,0.00469965]
[1673616598678,3.81124496,18874.0,18873.0,0.00469965]
[1673616599163,3.57411209,18874.0,18873.0,0.00469965]
[1673616599411,2.74065456,18874.0,18873.0,0.00469965]
[1673616599662,2.74065456,18874.0,18873.0,0.77257769]
[1673616599910,2.74065456,18874.0,18873.0,1.10275869]
[1673616600907,2.74065456,18874.0,18873.0,0.77257769]
[1673616601151,2.74065456,18874.0,18873.0,0.97020869]
[1673616601401,2.74065456,18874.0,18873.0,0.64002769]
[1673616601651,2.73934856,18874.0,18873.0,0.97020869]
[1673616601894,2.73934856,18874.0,18873.0,0.64002769]
[1673616603154,2.73934856,18874.0,18873.0,0.97020869]
[1673616603406,2.73934856,18874.0,18873.0,0.64002769]
[1673616603657,2.89781523,18874.0,18873.0,0.64002769]
[1673616604407,2.89781523,18874.0,18873.0,0.00469965]
[1673616605900,3.96945625,18874.0,18873.0,0.00469965]
[1673616606142,5.83504522,18874.0,18873.0,0.00469965]
[1673616606389,5.53185744,18874.0,18873.0,0.00469965]
[1673616606656,4.72684896,18874.0,18873.0,0.00469965]
[1673616606907,5.136636,18874.0,18873.0,0.00469965]
[1673616608151,5.32406011,18874.0,18873.0,0.00469965]
[1673616608396,4.72684896,18874.0,18873.0,0.00469965]
[1673616609136,5.20247449,18874.0,18873.0,0.00469965]
[1673616609379,5.63338888,18874.0,18873.0,0.00469965]
[1673616609621,5.33338888,18874.0,18873.0,0.00469965]
[1673616609879,5.63338888,18874.0,18873.0,0.00469965]
[1673616610135,5.63338888,18874.0,18873.0,0.00133939]
[1673616610382,4.72684896,18874.0,18873.0,0.00133939]
[1673616610625,5.61226153,18874.0,18873.0,0.00133939]
[1673616610865,5.20247449,18874.0,18873.0,0.00133939]
[1673616611150,5.50247449,18874.0,18873.0,0.00133939]
[1673616611416,6.0258155,18874.0,18873.0,0.00133939]
[1673616611663,7.9502874,18874.0,18873.0,0.00024646]
[1673616611908,9.5488526,18874.0,18873.0,0.00024646]
[1673616612178,9.0423201,18874.0,18873.0,0.00024646]
[1673616612421,10.93989424,18874.0,18873.0,0.00024646]
[1673616612914,10.85869796,18874.0,18873.0,0.00024646]
[1673616613409,0.975,18872.0,18871.0,0.00612556]
[1673616613657,6.5653519,18872.0,18871.0,0.00612556]
[1673616613904,7.03427123,18872.0,18871.0,0.00612556]
[1673616614158,8.49945188,18872.0,18871.0,0.00612556]
[1673616614902,10.62456467,18872.0,18871.0,0.00612556]
[1673616615158,11.28490568,18872.0,18871.0,0.00612556]
[1673616615404,9.69461224,18872.0,18871.0,0.00612556]
[1673616615648,11.28490346,18872.0,18871.0,0.00612556]
[1673616615900,9.69461224,18872.0,18871.0,5.6e-07]
[1673616616149,0.1,18871.0,18870.0,0.00636038]
[1673616616397,3.27995302,18871.0,18870.0,0.00636038]
[1673616616641,2.80518744,18871.0,18870.0,0.00636038]
[1673616617130,3.27995302,18871.0,18870.0,0.00636038]
[1673616617912,3.41695302,18871.0,18870.0,0.00636038]
[1673616618154,2.94218744,18871.0,18870.0,0.00636038]
[1673616618654,3.14284037,18871.0,18870.0,0.00636038]
[1673616619641,4.14383865,18871.0,18870.0,0.00636038]
[1673616619902,5.74291196,18871.0,18870.0,0.00636038]
[1673616620152,5.20809261,18871.0,18869.0,0.00539431]
[1673616620397,4.91361226,18870.0,18869.0,0.00539431]
[1673616620684,4.7210975,18870.0,18869.0,0.00539431]
[1673616620929,4.77390122,18870.0,18869.0,0.00539431]
[1673616621169,7.31124978,18870.0,18869.0,0.00539431]
[1673616621680,0.1,18869.0,18868.0,0.00233582]
[1673616621933,2.80588744,18869.0,18868.0,0.00233582]
[1673616622431,3.32922845,18869.0,18868.0,0.00233582]
[1673616622678,2.94288744,18869.0,18868.0,0.00233582]
[1673616623173,3.33775987,18869.0,18868.0,0.00233582]
[1673616623422,2.27795742,18869.0,18868.0,0.00233582]
[1673616623916,2.59387962,18869.0,18868.0,0.00233582]
[1673616624663,2.11837023,18869.0,18868.0,0.00233582]
[1673616625671,2.22471257,18869.0,18868.0,0.00233582]
[1673616625920,1.52982932,18869.0,18868.0,0.00233582]
[1673616626165,1.37191038,18869.0,18868.0,0.00233582]
[1673616626411,1.23211038,18869.0,18868.0,0.00233582]
[1673616626655,1.13211038,18869.0,18868.0,0.00233582]
[1673616627639,0.99511038,18869.0,18868.0,0.00233582]
[1673616627889,0.99511038,18869.0,18868.0,0.00333582]
[1673616627890,1.13111038,18869.0,18868.0,0.00333582]
[1673616628140,0.80092938,18869.0,18868.0,0.51182995]
[1673616628383,0.136,18869.0,18868.0,0.51182995]
[1673616628629,0.136,18869.0,18868.0,0.65122995]
[1673616628867,0.136,18869.0,18868.0,0.79152995]
[1673616629110,0.136,18869.0,18868.0,1.12171095]
[1673616629627,0.136,18869.0,18868.0,1.22171095]
[1673616630126,0.136,18869.0,18868.0,1.36201095]
[1673616632338,0.136,18869.0,18868.0,1.35274222]
[1673616632587,2.53734856,18870.0,18868.0,1.4031082]
[1673616632802,2.53734856,18870.0,18869.0,0.710781]
[1673616633037,2.53734856,18870.0,18869.0,0.610781]
[1673616633280,2.53734856,18870.0,18869.0,0.2806]
[1673616633865,2.54634856,18870.0,18869.0,0.3036]
[1673616634113,2.53734856,18870.0,18869.0,0.87942336]
[1673616634360,2.55234856,18870.0,18869.0,1.21460436]
[1673616636133,2.48759856,18870.0,18869.0,1.21460436]
[1673616638905,2.48759856,18870.0,18869.0,0.69742336]
[1673616639664,2.63122645,18870.0,18869.0,0.005]
[1673616640157,2.48759856,18870.0,18869.0,0.005]
[1673616640902,3.13527594,18870.0,18869.0,0.005]
[1673616641140,3.46545694,18870.0,18869.0,0.005]
[1673616642118,3.13527594,18870.0,18869.0,0.005]
[1673616643145,3.46545694,18870.0,18869.0,0.005]
[1673616643629,3.52422777,18870.0,18869.0,0.005]
[1673616645597,3.46545694,18870.0,18869.0,0.005]
[1673616646851,2.48759856,18870.0,18869.0,1.05649389]
[1673616647101,2.48759856,18870.0,18869.0,0.93978895]
[1673616647349,2.48759856,18870.0,18869.0,1.26996995]
[1673616647861,2.48759856,18870.0,18869.0,1.58027489]
[1673616648116,2.48759856,18870.0,18869.0,1.16271754]
[1673616648600,2.48759856,18870.0,18869.0,1.83577318]
[1673616649148,0.015,18870.0,18869.0,1.16271754]
[1673616649171,0.00021241,18872.0,18870.0,0.1]
[1673616649423,0.068,18874.0,18871.0,1.01707939]
[1673616649424,0.045246,18874.0,18871.0,1.01707939]
[1673616649653,0.04994555,18873.0,18872.0,0.93032989]
[1673616649895,1.72138003,18873.0,18872.0,1.11752989]
[1673616650135,2.47259856,18873.0,18872.0,1.11752989]
[1673616650380,2.47259856,18873.0,18872.0,1.36052396]
[1673616650858,0.80116408,18873.0,18872.0,1.36052396]
[1673616651094,0.045246,18874.0,18872.0,1.36052396]
[1673616651333,0.045246,18874.0,18873.0,0.517381]
[1673616651823,0.75018962,18874.0,18873.0,0.517381]
[1673616652060,0.75018962,18874.0,18872.0,0.74314296]
[1673616652299,0.75018962,18874.0,18873.0,0.029]
[1673616652556,0.76418962,18874.0,18873.0,0.029]
[1673616653048,0.75018962,18874.0,18872.0,0.74314296]
[1673616653559,0.76518962,18874.0,18873.0,0.029]
[1673616654534,0.85018962,18874.0,18871.0,0.0936]
[1673616654773,0.85018962,18874.0,18872.0,0.029]
[1673616654774,0.86418962,18874.0,18872.0,0.029]
[1673616655003,0.85018962,18874.0,18871.0,0.63091151]
[1673616655270,0.85018962,18874.0,18871.0,0.73091151]
[1673616655493,0.86518962,18874.0,18873.0,0.029]
[1673616655758,0.85018962,18874.0,18871.0,0.73091151]
[1673616656010,0.85018962,18874.0,18872.0,0.029]
[1673616656011,0.86418962,18874.0,18872.0,0.029]
[1673616656250,0.85018962,18874.0,18871.0,0.63091151]
[1673616656481,0.1,18873.0,18871.0,0.63091151]
[1673616656973,0.1,18873.0,18870.0,1.04312698]
[1673616657218,0.330181,18872.0,18870.0,1.04312698]
[1673616657467,0.1,18873.0,18870.0,1.56794514]
[1673616657973,0.1,18873.0,18872.0,0.026]
[1673616658213,0.1,18873.0,18870.0,1.56794514]
[1673616658461,0.004,18872.0,18871.0,0.6886724]
[1673616658714,0.80444485,18874.0,18871.0,0.6886724]
[1673616658971,0.004,18873.0,18872.0,0.21030494]
[1673616659205,0.004,18873.0,18871.0,0.7814724]
[1673616659682,0.70444485,18874.0,18872.0,0.330181]
[1673616659920,0.77744485,18874.0,18873.0,0.330181]
[1673616660375,0.72839776,18874.0,18873.0,0.330181]
[1673616660625,0.72839776,18874.0,18872.0,0.1]
[1673616660904,0.65539776,18874.0,18873.0,0.330181]
[1673616661149,0.045246,18874.0,18873.0,0.330181]
[1673616661382,1.71668048,18874.0,18873.0,0.88790934]
[1673616661621,2.65384456,18874.0,18873.0,0.003]
[1673616661862,3.5568647,18874.0,18873.0,0.003]
[1673616662830,3.2266837,18874.0,18873.0,0.003]
[1673616664605,3.5568647,18874.0,18873.0,0.003]
[1673616665878,3.07936,18874.0,18873.0,0.003]
[1673616666119,3.31623999,18874.0,18873.0,0.003]
[1673616667093,3.07936,18874.0,18873.0,0.003]
[1673616667343,2.749179,18874.0,18873.0,0.003]
[1673616668332,3.31623999,18874.0,18873.0,0.003]
[1673616669296,2.98605899,18874.0,18873.0,0.003]
[1673616669559,2.749179,18874.0,18873.0,0.003]
[1673616670316,2.01842092,18874.0,18873.0,0.003]
[1673616670560,2.01842092,18874.0,18873.0,1.03771591]
[1673616670814,2.01842092,18874.0,18873.0,0.82741097]
[1673616671308,2.01842092,18874.0,18873.0,1.15759197]
[1673616671550,2.01842092,18874.0,18873.0,0.82741097]
[1673616673299,2.01842092,18874.0,18873.0,1.15759197]
[1673616675313,2.01842092,18874.0,18873.0,1.2170981]
[1673616677059,2.01842092,18874.0,18873.0,1.3106981]
[1673616677296,2.01842092,18874.0,18873.0,1.4106981]
[1673616677792,2.01842092,18874.0,18873.0,1.4127782]
[1673616678041,0.93716408,18874.0,18873.0,1.5057782]
[1673616678305,0.136,18874.0,18873.0,1.36436606]
[1673616678566,0.0106873,18876.0,18874.0,0.13885342]
[1673616678821,0.0106873,18876.0,18875.0,0.81743372]
[1673616679060,0.0106873,18876.0,18875.0,0.91743372]
[1673616679820,0.0106873,18876.0,18875.0,1.13688681]
[1673616680313,0.0126873,18876.0,18875.0,1.27588681]
[1673616680562,0.0106873,18876.0,18875.0,1.13688681]
[1673616680827,0.0126873,18876.0,18875.0,1.27588681]
[1673616681071,0.0106873,18876.0,18875.0,1.13688681]
[1673616681318,0.0106873,18876.0,18875.0,1.27588681]
[1673616681319,0.0126873,18876.0,18875.0,1.27588681]